fUST/lending_fUST_20240820
["ID","MTS","AMOUNT","RATE_DAILY","PERIOD"]
[335358493,1724158244383,-500.0,0.00016438,2]
[335358494,1724158244392,-500.0,0.00016438,2]
[335358495,1724158244401,-502.79483169,0.00016438,2]
[335358496,1724158244410,-500.0,0.00016438,2]
[335358497,1724158244419,-500.0,0.00016438,2]
[335358498,1724158244428,-500.0,0.00016438,2]
[335358499,1724158244438,-500.0,0.00016438,2]
[335358500,1724158244447,-511.36324838,0.00016438,2]
[335358501,1724158244456,-500.0,0.00016438,2]
[335358502,1724158244465,-500.0,0.00016438,2]
[335358503,1724158244475,-526.42,0.00016438,2]
[335358504,1724158244484,-503.76931592,0.00016438,2]
[335358505,1724158244493,-503.67518267,0.00016438,2]
[335358506,1724158244502,-501.6430387,0.00016438,2]
[335358507,1724158244511,-500.0,0.00016438,2]
[335358508,1724158244520,-500.0,0.00016438,2]
[335358509,1724158244530,-500.0,0.00016438,2]
[335358510,1724158244538,-554.57895789,0.00016438,2]
[335358511,1724158244547,-500.0,0.00016438,2]
[335358512,1724158244557,-500.0,0.00016438,2]
[335358513,1724158244566,-503.06181632,0.00016438,2]
[335358514,1724158244576,-503.18098062,0.00016438,2]
[335358515,1724158244585,-500.0,0.00016438,2]
[335358516,1724158244594,-503.54449928,0.00016438,2]
[335358517,1724158244604,-273.89970954,0.00016438,2]
[335358518,1724158244613,-500.0,0.00016438,2]
[335358519,1724158244622,-500.0,0.00016438,2]
[335358520,1724158244630,-500.0,0.00016438,2]
[335358521,1724158244639,-399.86996551,0.00016438,2]
[335358522,1724158244649,-500.0,0.00016438,2]
[335358523,1724158244658,-513.38270038,0.00016438,2]
[335358524,1724158244667,-500.0,0.00016438,2]
[335358525,1724158244676,-500.0,0.00016438,2]
[335358526,1724158244685,-682.11,0.00016438,2]
[335358527,1724158244693,-500.0,0.00016438,2]
[335358528,1724158244702,-500.0,0.00016438,2]
[335358529,1724158244712,-500.0,0.00016438,2]
[335358530,1724158244722,-500.0,0.00016438,2]
[335358531,1724158244731,-500.0,0.00016438,2]
[335358532,1724158244740,-500.0,0.00016438,2]
[335358533,1724158244749,-389.51866418,0.00016438,2]
[335358534,1724158244758,-500.0,0.00016438,2]
[335358535,1724158244767,-500.0,0.00016438,2]
[335358536,1724158244776,-500.0,0.00016438,2]
[335358537,1724158244785,-507.616974,0.00016438,2]
[335358538,1724158244794,-500.0,0.00016438,2]
[335358539,1724158244803,-500.0,0.00016438,2]
[335358540,1724158244812,-500.0,0.00016438,2]
[335358541,1724158244821,-537.96894705,0.00016438,2]
[335358542,1724158244830,-502.67785879,0.00016438,2]
[335358543,1724158244840,-681.5,0.00016438,2]
[335358544,1724158244849,-503.47722121,0.00016438,2]
[335358545,1724158244858,-504.32658863,0.00016438,2]
[335358546,1724158244867,-504.0261039,0.00016438,2]
[335358547,1724158244876,-500.0,0.00016438,2]
[335358548,1724158244885,-500.0,0.00016438,2]
[335358549,1724158244894,-500.0,0.00016438,2]
[335358550,1724158244904,-500.0,0.00016438,2]
[335358551,1724158244913,-501.32968299,0.00016438,2]
[335358552,1724158244922,-500.0,0.00016438,2]
[335358553,1724158244932,-597.73726369,0.00016438,2]
[335358554,1724158244940,-500.0,0.00016438,2]
[335358555,1724158244949,-500.0,0.00016438,2]
[335358556,1724158244958,-517.36251035,0.00016438,2]
[335358557,1724158244968,-505.10556489,0.00016438,2]
[335358558,1724158244977,-151.0,0.00016438,2]
[335358559,1724158244986,-500.0,0.00016438,2]
[335358560,1724158244995,-500.0,0.00016438,2]
[335358561,1724158245005,-500.0,0.00016438,2]
[335358562,1724158245015,-500.0,0.00016438,2]
[335358563,1724158245026,-500.0,0.00016438,2]
[335358564,1724158245035,-500.0,0.00016438,2]
[335358565,1724158245044,-944.89,0.00016438,2]
[335358566,1724158245053,-500.0,0.00016438,2]
[335358567,1724158245062,-844.27,0.00016438,2]
[335358568,1724158245073,-5136.04,0.00016438,2]
[335358569,1724158245082,-500.0,0.00016438,2]
[335358570,1724158245091,-167.290911,0.00016438,2]
[335358571,1724158245100,-500.0,0.00016438,2]
[335358572,1724158245110,-501.27584992,0.00016438,2]
[335358573,1724158245120,-500.0,0.00016438,2]
[335358574,1724158245130,-500.0,0.00016438,2]
[335358575,1724158245140,-501.84685519,0.00016438,2]
[335358576,1724158245150,-500.36598369,0.00016438,2]
[335358577,1724158245159,-500.0,0.00016438,2]
[335358578,1724158245168,-500.0,0.00016438,2]
[335358579,1724158245177,-500.0,0.00016438,2]
[335358580,1724158245187,-500.0,0.00016438,2]
[335358581,1724158245197,-500.0,0.00016438,2]
[335358582,1724158245207,-504.02818564,0.00016438,2]
[335358583,1724158245218,-513.20656849,0.00016438,2]
[335358584,1724158245227,-500.0,0.00016438,2]
[335358585,1724158245238,-1005.97,0.00016438,2]
[335358586,1724158245251,-500.0,0.00016438,2]
[335358587,1724158245261,-58500.0,0.000167,2]
[335358588,1724158245271,-500.0,0.00016712,2]
[335358589,1724158245282,-500.0,0.00016712,2]
[335358590,1724158245292,-500.0,0.00016712,2]
[335358591,1724158245301,-500.0,0.00016712,2]
[335358592,1724158245312,-500.0,0.00016712,2]
[335358593,1724158245325,-500.0,0.00016712,2]
[335358594,1724158245334,-500.0,0.00016712,2]
[335358595,1724158245351,-500.0,0.00016712,2]
[335358596,1724158245360,-500.0,0.00016712,2]
[335358597,1724158245369,-500.0,0.00016712,2]
[335358598,1724158245378,-500.0,0.00016712,2]
[335358599,1724158245388,-500.0,0.00016712,2]
[335358600,1724158245397,-500.0,0.00016712,2]
[335358601,1724158245406,-500.0,0.00016712,2]
[335358602,1724158245415,-500.0,0.00016712,2]
[335358603,1724158245423,-500.0,0.00016712,2]
[335358604,1724158245432,-500.0,0.00016712,2]
[335358606,1724158245441,-500.0,0.00016712,2]
[335358607,1724158245450,-500.0,0.00016712,2]
[335358608,1724158245459,-500.0,0.00016712,2]
[335358609,1724158245468,-500.0,0.00016712,2]
[335358610,1724158245477,-500.0,0.00016712,2]
[335358611,1724158245486,-500.0,0.00016712,2]
[335358612,1724158245495,-500.0,0.00016712,2]
[335358613,1724158245505,-523.12903915,0.00016712,2]
[335358614,1724158245514,-500.0,0.00016712,2]
[335358615,1724158245523,-500.0,0.00016712,2]
[335358616,1724158245533,-500.0,0.00016712,2]
[335358617,1724158245542,-500.0,0.00016712,2]
[335358618,1724158245550,-500.0,0.00016712,2]
[335358619,1724158245559,-500.0,0.00016712,2]
[335358620,1724158245568,-500.0,0.00016712,2]
[335358621,1724158245577,-500.0,0.00016712,2]
[335358622,1724158245586,-500.0,0.00016712,2]
[335358623,1724158245594,-500.0,0.00016712,2]
[335358624,1724158245603,-500.37,0.00016712,2]
[335358625,1724158245612,-500.0,0.00016712,2]
[335358626,1724158245621,-500.0,0.00016712,2]
[335358627,1724158245631,-500.0,0.00016712,2]
[335358628,1724158245640,-500.0,0.00016712,2]
[335358629,1724158245649,-500.0,0.00016712,2]
[335358630,1724158245658,-500.0,0.00016712,2]
[335358631,1724158245668,-500.0,0.00016712,2]
[335358632,1724158245677,-500.0,0.00016712,2]
[335358633,1724158245686,-500.0,0.00016712,2]
[335358635,1724158245695,-500.0,0.00016712,2]
[335358636,1724158245704,-500.0,0.00016712,2]
[335358637,1724158245714,-500.0,0.00016712,2]
[335358638,1724158245723,-500.0,0.00016712,2]
[335358639,1724158245732,-500.0,0.00016712,2]
[335358640,1724158245741,-500.0,0.00016712,2]
[335358641,1724158245750,-500.0,0.00016712,2]
[335358643,1724158245759,-500.0,0.00016712,2]
[335358645,1724158245768,-500.0,0.00016712,2]
[335358647,1724158245777,-573.51904403,0.00016712,2]
[335358649,1724158245786,-500.0,0.00016712,2]
[335358651,1724158245795,-505.48695279,0.00016712,2]
[335358653,1724158245804,-500.0,0.00016712,2]
[335358655,1724158245814,-1614.96,0.00016712,2]
[335358657,1724158245829,-500.0,0.00016712,2]
[335358659,1724158245846,-500.0,0.00016712,2]
[335358661,1724158245854,-500.0,0.00016712,2]
[335358663,1724158245864,-252.49527329,0.00016712,2]
[335358665,1724158245874,-500.0,0.00016712,2]
[335358667,1724158245883,-500.0,0.00016712,2]
[335358669,1724158245893,-500.0,0.00016712,2]
[335358671,1724158245903,-506.23259312,0.00016712,2]
[335358673,1724158245913,-500.0,0.00016712,2]
[335358675,1724158245922,-500.0,0.00016712,2]
[335358677,1724158245932,-565.6,0.00016712,2]
[335358679,1724158245941,-500.0,0.00016712,2]
[335358681,1724158245950,-500.0,0.00016712,2]
[335358683,1724158245959,-500.0,0.00016712,2]
[335358685,1724158245968,-500.0,0.00016712,2]
[335358687,1724158245977,-500.0,0.00016712,2]
[335358689,1724158245987,-500.0,0.00016712,2]
[335358690,1724158245995,-500.0,0.00016712,2]
[335358692,1724158246005,-500.0,0.00016712,2]
[335358694,1724158246015,-500.0,0.00016712,2]
[335358696,1724158246025,-500.0,0.00016712,2]
[335358698,1724158246035,-500.0,0.00016712,2]
[335358700,1724158246044,-875.53,0.00016712,2]
[335358702,1724158246054,-500.0,0.00016712,2]
[335358704,1724158246064,-500.0,0.00016712,2]
[335358706,1724158246074,-513.70100758,0.00016712,2]
[335358708,1724158246084,-500.0,0.00016712,2]
[335358710,1724158246093,-500.0,0.00016712,2]
[335358712,1724158246102,-501.59760848,0.00016712,2]
[335358714,1724158246110,-546.48982089,0.00016712,2]
[335358716,1724158246121,-502.28822342,0.00016712,2]
[335358718,1724158246130,-500.0,0.00016712,2]
[335358720,1724158246139,-500.0,0.00016712,2]
[335358722,1724158246149,-498.86302463,0.00016712,2]
[335358724,1724158246158,-500.54378537,0.00016712,2]
[335358726,1724158246167,-500.0,0.00016712,2]
[335358728,1724158246180,-500.0,0.00016712,2]
[335358730,1724158246189,-500.0,0.00016712,2]
[335358732,1724158246199,-504.50920809,0.00016712,2]
[335358734,1724158246208,-500.0,0.00016712,2]
[335358736,1724158246217,-502.35873928,0.00016712,2]
[335358738,1724158246227,-448.68916869,0.00016712,2]
[335358740,1724158246236,-500.0,0.00016712,2]
[335358742,1724158246249,-500.0,0.00016712,2]
[335358744,1724158246259,-503.77642172,0.00016712,2]
[335358746,1724158246268,-500.0,0.00016712,2]
[335358748,1724158246277,-500.0,0.00016712,2]
[335358749,1724158246286,-500.0,0.00016712,2]
[335358751,1724158246295,-500.0,0.00016712,2]
[335358753,1724158246304,-500.0,0.00016712,2]
[335358756,1724158246315,-500.0,0.00016712,2]
[335358757,1724158246327,-500.0,0.00016712,2]
[335358759,1724158246336,-487.50848374,0.00016712,2]
[335358761,1724158246346,-502.6975238,0.00016712,2]
[335358764,1724158246355,-500.0,0.00016712,2]
[335358765,1724158246365,-386.28680511,0.00016712,2]
[335358767,1724158246374,-500.0,0.00016712,2]
[335358770,1724158246384,-500.0,0.00016712,2]
[335358772,1724158246393,-500.0,0.00016712,2]
[335358774,1724158246402,-500.0,0.00016712,2]
[335358776,1724158246412,-500.0,0.00016712,2]
[335358778,1724158246421,-500.0,0.00016712,2]
[335358780,1724158246432,-500.0,0.00016712,2]
[335358782,1724158246441,-500.0,0.00016712,2]
[335358784,1724158246450,-500.0,0.00016712,2]
[335358785,1724158246458,-500.0,0.00016712,2]
[335358787,1724158246468,-500.0,0.00016712,2]
[335358789,1724158246477,-500.0,0.00016712,2]
[335358791,1724158246486,-515.50998984,0.00016712,2]
[335358793,1724158246495,-500.0,0.00016712,2]
[335358795,1724158246504,-500.0,0.00016712,2]
[335358797,1724158246513,-500.0,0.00016712,2]
[335358799,1724158246522,-500.0,0.00016712,2]
[335358801,1724158246531,-1000.0,0.00016712,2]
[335358803,1724158246540,-500.0,0.00016712,2]
[335358805,1724158246549,-500.0,0.00016712,2]
[335358807,1724158246558,-500.0,0.00016712,2]
[335358809,1724158246567,-500.0,0.00016712,2]
[335358811,1724158246578,-500.25624756,0.00016712,2]
[335358813,1724158246587,-500.0,0.00016712,2]
[335358815,1724158246595,-501.3110504,0.00016712,2]
[335358817,1724158246604,-500.0,0.00016712,2]
[335358819,1724158246613,-504.18904369,0.00016712,2]
[335358821,1724158246622,-500.0,0.00016712,2]
[335358823,1724158246631,-500.0,0.00016712,2]
[335358825,1724158246640,-504.07005618,0.00016712,2]
[335358827,1724158246649,-500.0,0.00016712,2]
[335358829,1724158246658,-500.0,0.00016712,2]
[335358831,1724158246668,-500.0,0.00016712,2]
[335358833,1724158246677,-500.1932811,0.00016712,2]
[335358835,1724158246686,-500.0,0.00016712,2]
[335358837,1724158246695,-500.0,0.00016712,2]
[335358839,1724158246704,-500.0,0.00016712,2]
[335358841,1724158246714,-500.0,0.00016712,2]
[335358843,1724158246723,-505.84789719,0.00016712,2]
[335358845,1724158246732,-500.0,0.00016712,2]
[335358847,1724158246741,-554.10358249,0.00016712,2]
[335358849,1724158246750,-504.46954326,0.00016712,2]
[335358851,1724158246759,-500.0,0.00016712,2]
[335358853,1724158246769,-502.76661967,0.00016712,2]
[335358855,1724158246778,-501.51002754,0.00016712,2]
[335358857,1724158246787,-502.59095076,0.00016712,2]
[335358870,1724158246904,-501.55091637,0.00016712,2]
[335358872,1724158246914,-500.0,0.00016712,2]
[335358874,1724158246923,-500.0,0.00016712,2]
[335358876,1724158246932,-500.0,0.00016712,2]
[335358878,1724158246942,-500.0,0.00016712,2]
[335358880,1724158246951,-506.29955647,0.00016712,2]
[335358882,1724158246960,-500.0,0.00016712,2]
[335358884,1724158246969,-500.0,0.00016712,2]
[335358886,1724158246978,-500.0,0.00016712,2]
[335358888,1724158246988,-500.0,0.00016712,2]
[335358890,1724158246997,-500.0,0.00016712,2]
[335358892,1724158247006,-509.38497931,0.00016712,2]
[335358894,1724158247016,-500.0,0.00016712,2]
[335358896,1724158247025,-1922.69,0.00016712,2]
[335358898,1724158247034,-503.96616619,0.00016712,2]
[335358900,1724158247043,-500.0,0.00016712,2]
[335358902,1724158247053,-500.0,0.00016712,2]
[335358904,1724158247062,-500.0,0.00016712,2]
[335358906,1724158247071,-500.0,0.00016712,2]
[335358908,1724158247080,-500.0,0.00016712,2]
[335358910,1724158247089,-575.35760915,0.00016712,2]
[335358912,1724158247098,-500.0,0.00016712,2]
[335358914,1724158247107,-500.0,0.00016712,2]
[335358916,1724158247118,-500.0,0.00016712,2]
[335358918,1724158247127,-500.0,0.00016712,2]
[335358920,1724158247138,-500.0,0.00016712,2]
[335358922,1724158247147,-500.0,0.00016712,2]
[335358924,1724158247156,-505.56050901,0.00016712,2]
[335358926,1724158247165,-500.0,0.00016712,2]
[335358928,1724158247174,-500.0,0.00016712,2]
[335358930,1724158247183,-500.0,0.00016712,2]
[335358932,1724158247191,-241.74703384,0.00016712,2]
[335358934,1724158247200,-502.98749075,0.00016712,2]
[335358935,1724158247209,-519.16067318,0.00016712,2]
[335358937,1724158247219,-500.0,0.00016712,2]
[335358939,1724158247228,-501.31414961,0.00016712,2]
[335358941,1724158247237,-500.0,0.00016712,2]
[335358943,1724158247250,-504.25281435,0.00016712,2]
[335358945,1724158247259,-500.0,0.00016712,2]
[335358947,1724158247268,-500.0,0.00016712,2]
[335358949,1724158247277,-1269.84,0.00016712,2]
[335358951,1724158247287,-500.0,0.00016712,2]
[335358953,1724158247296,-500.0,0.00016712,2]
[335358955,1724158247305,-500.0,0.00016712,2]
[335358957,1724158247314,-501.83754035,0.00016712,2]
[335358959,1724158247325,-503.26613648,0.00016712,2]
[335358961,1724158247334,-500.0,0.00016712,2]
[335358963,1724158247343,-200.0,0.00016712,2]
[335358965,1724158247351,-571.95315328,0.00016712,2]
[335358967,1724158247360,-576.62884116,0.00016712,2]
[335358969,1724158247369,-503.28137629,0.00016712,2]
[335358971,1724158247378,-505.54129742,0.00016712,2]
[335358973,1724158247387,-352.03186202,0.00016712,2]
[335358975,1724158247395,-515.07755243,0.00016712,2]
[335358977,1724158247404,-500.0,0.00016712,2]
[335358979,1724158247414,-503.65840055,0.00016712,2]
[335358981,1724158247424,-500.0,0.00016712,2]
[335358983,1724158247433,-1806.05,0.00016712,2]
[335358985,1724158247444,-2000.0,0.00016712,2]
[335358987,1724158247454,-500.0,0.00016712,2]
[335358989,1724158247463,-500.0,0.00016712,2]
[335358991,1724158247472,-500.0,0.00016712,2]
[335358993,1724158247481,-500.0,0.00016712,2]
[335358995,1724158247490,-500.0,0.00016712,2]
[335358997,1724158247499,-500.0,0.00016712,2]
[335358999,1724158247508,-500.0,0.00016712,2]
[335359001,1724158247517,-500.0,0.00016712,2]
[335359003,1724158247526,-500.0,0.00016712,2]
[335359005,1724158247536,-500.0,0.00016712,2]
[335359007,1724158247546,-505.25509018,0.00016712,2]
[335359009,1724158247555,-500.0,0.00016712,2]
[335359011,1724158247565,-500.0,0.00016712,2]
[335359012,1724158247575,-500.0,0.00016712,2]
[335359014,1724158247584,-1177.97,0.00016712,2]
[335359016,1724158247594,-500.0,0.00016712,2]
[335359017,1724158247603,-500.0,0.00016712,2]
[335359018,1724158247612,-504.27669936,0.00016712,2]
[335359019,1724158247622,-500.0,0.00016712,2]
[335359020,1724158247631,-505.03545993,0.00016712,2]
[335359021,1724158247640,-507.29814769,0.00016712,2]
[335359022,1724158247650,-500.0,0.00016712,2]
[335359023,1724158247659,-500.0,0.00016712,2]
[335359024,1724158247669,-500.0,0.00016712,2]
[335359025,1724158247678,-500.0,0.00016712,2]
[335359026,1724158247688,-756.02,0.00016712,2]
[335359027,1724158247697,-500.0,0.00016712,2]
[335359028,1724158247707,-500.0,0.00016712,2]
[335359029,1724158247717,-500.0,0.00016712,2]
[335359030,1724158247727,-509.28285814,0.00016712,2]
[335359031,1724158247739,-500.0,0.00016712,2]
[335359032,1724158247748,-500.0,0.00016712,2]
[335359033,1724158247758,-511.49,0.00016712,2]
[335359034,1724158247767,-500.0,0.00016712,2]
[335359035,1724158247776,-500.0,0.00016712,2]
[335359036,1724158247785,-1067.26,0.00016712,2]
[335359037,1724158247795,-500.0,0.00016712,2]
[335359038,1724158247804,-500.0,0.00016712,2]
[335359039,1724158247814,-500.0,0.00016712,2]
[335359040,1724158247824,-619.87,0.00016712,2]
[335359041,1724158247833,-500.0,0.00016712,2]
[335359042,1724158247843,-178.39286826,0.00016712,2]
[335359043,1724158247853,-244.35180494,0.00016712,2]
[335359044,1724158247863,-348.0316953,0.00016712,2]
[335359045,1724158247873,-500.0,0.00016712,2]
[335359046,1724158247883,-469.95727674,0.00016712,2]
[335359047,1724158247892,-500.0,0.00016712,2]
[335359048,1724158247901,-320.77073065,0.00016712,2]
[335359049,1724158247911,-521.59163149,0.00016712,2]
[335359050,1724158247920,-500.0,0.00016712,2]
[335359051,1724158247930,-2977.11,0.00016712,2]
[335359052,1724158247939,-500.0,0.00016712,2]
[335359053,1724158247949,-500.0,0.00016712,2]
[335359054,1724158247958,-500.0,0.00016712,2]
[335359055,1724158247968,-605.38962245,0.00016712,2]
[335359056,1724158247978,-500.0,0.00016712,2]
[335359057,1724158247987,-503.08874414,0.00016712,2]
[335359058,1724158247996,-500.0,0.00016712,2]
[335359059,1724158248005,-500.0,0.00016712,2]
[335359060,1724158248015,-500.0,0.00016712,2]
[335359061,1724158248024,-500.0,0.00016712,2]
[335359062,1724158248034,-500.0,0.00016712,2]
[335359063,1724158248043,-500.0,0.00016712,2]
[335359064,1724158248053,-500.0,0.00016712,2]
[335359065,1724158248062,-500.0,0.00016712,2]
[335359066,1724158248071,-526.42,0.00016712,2]
[335359067,1724158248080,-500.0,0.00016712,2]
[335359068,1724158248090,-504.44859994,0.00016712,2]
[335359069,1724158248100,-500.0,0.00016712,2]
[335359070,1724158248109,-500.0,0.00016712,2]
[335359071,1724158248120,-500.0,0.00016712,2]
[335359072,1724158248129,-500.0,0.00016712,2]
[335359073,1724158248138,-500.0,0.00016712,2]
[335359074,1724158248148,-237.0707362,0.00016712,2]
[335359075,1724158248157,-500.0,0.00016712,2]
[335359076,1724158248167,-500.0,0.00016712,2]
[335359077,1724158248177,-682.11,0.00016712,2]
[335359078,1724158248186,-151.0,0.00016712,2]
[335359079,1724158248196,-500.0,0.00016712,2]
[335359080,1724158248205,-500.0,0.00016712,2]
[335359081,1724158248214,-504.54735381,0.00016712,2]
[335359082,1724158248223,-500.0,0.00016712,2]
[335359083,1724158248232,-500.0,0.00016712,2]
[335359084,1724158248244,-500.0,0.00016712,2]
[335359085,1724158248257,-500.0,0.00016712,2]
[335359086,1724158248266,-500.0,0.00016712,2]
[335359087,1724158248276,-500.0,0.00016712,2]
[335359088,1724158248286,-500.0,0.00016712,2]
[335359089,1724158248295,-500.0,0.00016712,2]
[335359090,1724158248304,-681.5,0.00016712,2]
[335359091,1724158248314,-500.0,0.00016712,2]
[335359092,1724158248323,-500.0,0.00016712,2]
[335359093,1724158248334,-506.59191739,0.00016712,2]
[335359094,1724158248344,-158.880846,0.00016712,2]
[335359095,1724158248353,-151.0,0.00016712,2]
[335359096,1724158248363,-500.0,0.00016712,2]
[335359097,1724158248372,-500.0,0.00016712,2]
[335359098,1724158248382,-158.880846,0.00016712,2]
[335359099,1724158248391,-500.0,0.00016712,2]
[335359100,1724158248402,-500.0,0.00016712,2]
[335359101,1724158248411,-520.75865901,0.00016712,2]
[335359102,1724158248421,-500.0,0.00016712,2]
[335359103,1724158248431,-500.0,0.00016712,2]
[335359104,1724158248441,-500.0,0.00016712,2]
[335359105,1724158248450,-500.0,0.00016712,2]
[335359106,1724158248460,-944.89,0.00016712,2]
[335359107,1724158248470,-496.53705127,0.00016712,2]
[335359108,1724158248479,-844.27,0.00016712,2]
[335359109,1724158248489,-5136.04,0.00016712,2]
[335359110,1724158248499,-500.0,0.00016712,2]
[335359111,1724158248508,-500.0,0.00016712,2]
[335359112,1724158248517,-500.0,0.00016712,2]
[335359113,1724158248527,-500.0,0.00016712,2]
[335359114,1724158248537,-500.44561053,0.00016712,2]
[335359115,1724158248546,-500.0,0.00016712,2]
[335359116,1724158248555,-436.45933866,0.00016712,2]
[335359117,1724158248565,-151.0,0.00016712,2]
[335359118,1724158248575,-500.0,0.00016712,2]
[335359119,1724158248585,-500.0,0.00016712,2]
[335359120,1724158248596,-1005.97,0.00016712,2]
[335359121,1724158248605,-292.84703741,0.00016712,2]
[335359122,1724158248615,-151.0,0.00016712,2]
[335359123,1724158248625,-471.9,0.00016836,2]
[335359124,1724158248634,-241.0,0.00016836,2]
[335359125,1724158248644,-500.0,0.00016986,2]
[335359126,1724158248654,-500.0,0.00016986,2]
[335359127,1724158248664,-500.0,0.00016986,2]
[335359128,1724158248673,-500.0,0.00016986,2]
[335359129,1724158248682,-500.0,0.00016986,2]
[335359130,1724158248692,-500.0,0.00016986,2]
[335359131,1724158248701,-500.0,0.00016986,2]
[335359132,1724158248711,-500.0,0.00016986,2]
[335359133,1724158248720,-500.0,0.00016986,2]
[335359134,1724158248729,-500.0,0.00016986,2]
[335359135,1724158248739,-500.0,0.00016986,2]
[335359136,1724158248748,-500.0,0.00016986,2]
[335359137,1724158248758,-500.0,0.00016986,2]
[335359138,1724158248768,-500.0,0.00016986,2]
[335359139,1724158248777,-500.0,0.00016986,2]
[335359140,1724158248787,-500.0,0.00016986,2]
[335359141,1724158248796,-500.0,0.00016986,2]
[335359142,1724158248806,-500.0,0.00016986,2]
[335359143,1724158248816,-500.0,0.00016986,2]
[335359144,1724158248826,-500.0,0.00016986,2]
[335359145,1724158248836,-500.0,0.00016986,2]
[335359146,1724158248846,-500.0,0.00016986,2]
[335359147,1724158248856,-500.0,0.00016986,2]
[335359148,1724158248866,-500.0,0.00016986,2]
[335359149,1724158248876,-500.03166675,0.00016986,2]
[335359150,1724158248886,-500.0,0.00016986,2]
[335359151,1724158248896,-176.55645309,0.00016986,2]
[335359152,1724158248906,-500.0,0.00016986,2]
[335359153,1724158248915,-500.0,0.00016986,2]
[335359154,1724158248925,-500.0,0.00016986,2]
[335359155,1724158248934,-507.17862359,0.00016986,2]
[335359156,1724158248944,-500.0,0.00016986,2]
[335359157,1724158248954,-500.0,0.00016986,2]
[335359158,1724158248964,-500.37,0.00016986,2]
[335359159,1724158248974,-500.0,0.00016986,2]
[335359160,1724158248984,-500.0,0.00016986,2]
[335359161,1724158248994,-500.0,0.00016986,2]
[335359162,1724158249004,-598.27507587,0.00016986,2]
[335359163,1724158249013,-500.0,0.00016986,2]
[335359164,1724158249023,-504.11531417,0.00016986,2]
[335359165,1724158249033,-500.0,0.00016986,2]
[335359166,1724158249042,-500.0,0.00016986,2]
[335359167,1724158249052,-500.0,0.00016986,2]
[335359168,1724158249062,-500.0,0.00016986,2]
[335359169,1724158249080,-500.0,0.00016986,2]
[335359170,1724158249090,-500.0,0.00016986,2]
[335359171,1724158249100,-500.0,0.00016986,2]
[335359172,1724158249110,-500.0,0.00016986,2]
[335359173,1724158249120,-500.0,0.00016986,2]
[335359174,1724158249130,-500.0,0.00016986,2]
[335359175,1724158249140,-500.0,0.00016986,2]
[335359176,1724158249150,-500.0,0.00016986,2]
[335359177,1724158249160,-500.0,0.00016986,2]
[335359178,1724158249169,-1614.96,0.00016986,2]
[335359179,1724158249178,-412.72989913,0.00016986,2]
[335359180,1724158249189,-460.07984016,0.00016986,2]
[335359181,1724158249198,-500.0,0.00016986,2]
[335359182,1724158249208,-500.0,0.00016986,2]
[335359183,1724158249218,-500.0,0.00016986,2]
[335359184,1724158249227,-588.09268531,0.00016986,2]
[335359185,1724158249239,-500.0,0.00016986,2]